Workbook

Sheet Spreadsheet8.1
B10: Parameters | G10: Density
B11: Mu (mean) | C11: 0 | F11: =Mu-Sigma*4 -> -40 | G11: =NORMDIST(F11,Mu,Sigma,FALSE)/SQRT(2*PI()) -> 5.339053545e-06 | H11: =EE -> 3.989422804 | I11: =PFE -> 23.26347874 | J11: 0 | K11: =Mu -> 0
B12: Standard deviation (sigma) | C12: 10 | F12: =F11+Sigma/10 -> -39 | G12: 7.925206677e-06 | H12: =EE -> 3.989422804 | I12: =PFE -> 23.26347874 | J12: =MAX(G11:G96) -> 0.01591549431 | K12: =K11 -> 0
B13: Alpha (confidence level) | C13: 0.99 | F13: -38 | G13: 1.164699723e-05
F14: -37 | G14: 1.694628098e-05
B15: Calculations | F15: -36 | G15: 2.441135514e-05
B16: Expected exposure (EE) | C16: =Mu*NORMSDIST(Mu/Sigma)+Sigma*NORMDIST(Mu/Sigma,0,1,FALSE) -> 3.989422804 | F16: -35 | G16: 3.481500244e-05
B17: Potential future exposure (PFE) | C17: =Mu+NORMSINV(Alpha)*Sigma -> 23.26347874 | F17: -34 | G17: 4.91584325e-05
F18: -33 | G18: 6.872055807e-05
F19: -32 | G19: 9.511135838e-05
F20: -31 | G20: 0.0001303272244
F21: -30 | G21: 0.0001768051712
F22: -29 | G22: 0.0002374716858
F23: -28 | G23: 0.0003157808305
F24: -27 | G24: 0.0004157351499
F25: -26 | G25: 0.0005418820721
F26: -25 | G26: 0.000699278017
F27: -24 | G27: 0.0008934124984
F28: -23 | G28: 0.001130085303
F29: -22 | G29: 0.001415231497
F30: -21 | G30: 0.001754691608
F31: -20 | G31: 0.00215392793
F32: -19 | G32: 0.002617692278
F33: -18 | G33: 0.003149655619
F34: -17 | G34: 0.00375201534
F35: -16 | G35: 0.004425101073
F36: -15 | G36: 0.005167004497
F37: -14 | G37: 0.005973261658
F38: -13 | G38: 0.00683661769
F39: -12 | G39: 0.00774690276
F40: -11 | G40: 0.00869104443
F41: -10 | G41: 0.009653235263
F42: -9 | G42: 0.01061526564
F43: -8 | G43: =NORMDIST(F43,Mu,Sigma,FALSE)/SQRT(2*PI()) -> 0.01155702087
F44: =F43+Sigma/10 -> -7 | G44: 0.01245712962
F45: -6 | G45: 0.0132937383
F46: -5 | G46: 0.01404537443
F47: -4 | G47: 0.01469185296
F48: -3 | G48: 0.01521517248
F49: -2 | G49: 0.01560034641
F50: -1 | G50: 0.01583611545
F51: 0 | G51: 0.01591549431
F52: 1 | G52: 0.01583611545
F53: 2 | G53: 0.01560034641
F54: 3 | G54: 0.01521517248
F55: 4 | G55: 0.01469185296
F56: 5 | G56: 0.01404537443
F57: 6 | G57: 0.0132937383
F58: 7 | G58: 0.01245712962
F59: 8 | G59: 0.01155702087
F60: 9 | G60: 0.01061526564
F61: 10 | G61: 0.009653235263
F62: 11 | G62: 0.00869104443
F63: 12 | G63: 0.00774690276
F64: 13 | G64: 0.00683661769
F65: 14 | G65: 0.005973261658
F66: 15 | G66: 0.005167004497
F67: 16 | G67: 0.004425101073
F68: 17 | G68: 0.00375201534
F69: 18 | G69: 0.003149655619
F70: 19 | G70: 0.002617692278
F71: 20 | G71: 0.00215392793
F72: 21 | G72: 0.001754691608
F73: 22 | G73: 0.001415231497
F74: 23 | G74: 0.001130085303
F75: 24 | G75: =NORMDIST(F75,Mu,Sigma,FALSE)/SQRT(2*PI()) -> 0.0008934124984
F76: =F75+Sigma/10 -> 25 | G76: 0.000699278017
F77: 26 | G77: 0.0005418820721
F78: 27 | G78: 0.0004157351499
F79: 28 | G79: 0.0003157808305
F80: 29 | G80: 0.0002374716858
F81: 30 | G81: 0.0001768051712
F82: 31 | G82: 0.0001303272244
F83: 32 | G83: 9.511135838e-05
F84: 33 | G84: 6.872055807e-05
F85: 34 | G85: 4.91584325e-05
F86: 35 | G86: 3.481500244e-05
F87: 36 | G87: 2.441135514e-05
F88: 37 | G88: 1.694628098e-05
F89: 38 | G89: 1.164699723e-05
F90: 39 | G90: 7.925206677e-06
F91: 40 | G91: 5.339053545e-06
F92: 41 | G92: 3.561024907e-06
F93: 42 | G93: 2.351488186e-06
F94: 43 | G94: 1.537331926e-06
F95: 44 | G95: 9.950606375e-07
F96: 45 | G96: 6.376590127e-07

Sheet Spreadsheet8.2
C11: EE | D11: EPE
B12: 0 | C12: 0.11 | D12: =AVERAGE(C12:C36) -> 0.30544
B13: =B12+1/24 -> 0.04166666667 | C13: 0.21 | D13: =D12 -> 0.30544
B14: =B13+1/24 -> 0.08333333333 | C14: 0.29 | D14: =D13 -> 0.30544
B15: 0.125 | C15: 0.4 | D15: 0.30544
B16: 0.1666666667 | C16: 0.62 | D16: 0.30544
B17: 0.2083333333 | C17: 0.45 | D17: 0.30544
B18: 0.25 | C18: 0.35 | D18: 0.30544
B19: 0.2916666667 | C19: 0.38 | D19: 0.30544
B20: 0.3333333333 | C20: 0.55 | D20: 0.30544
B21: 0.375 | C21: 0.75 | D21: 0.30544
B22: 0.4166666667 | C22: 0.94 | D22: 0.30544
B23: 0.4583333333 | C23: 0.52 | D23: 0.30544
B24: 0.5 | C24: 0.4 | D24: 0.30544
B25: 0.5416666667 | C25: 0.35 | D25: 0.30544
B26: 0.5833333333 | C26: 0.3 | D26: 0.30544
B27: 0.625 | C27: 0.25 | D27: 0.30544
B28: 0.6666666667 | C28: 0.22 | D28: 0.30544
B29: 0.7083333333 | C29: 0.2 | D29: 0.30544
B30: 0.75 | C30: 0.156 | D30: =D29 -> 0.30544
B31: 0.7916666667 | C31: 0.1 | D31: 0.30544
B32: 0.8333333333 | C32: 0.05 | D32: 0.30544
B33: 0.875 | C33: 0.03 | D33: 0.30544
B34: 0.9166666667 | C34: 0.01 | D34: 0.30544
B35: 0.9583333333 | C35: 0 | D35: 0.30544
B36: 1 | C36: 0 | D36: 0.30544

Sheet Spreadsheet8.3
C11: EE | D11: Effective EE | E11: EPE | F11: Effective EPE
B12: 0 | C12: 0.11 | D12: =C12 -> 0.11 | E12: =AVERAGE(C12:C36) -> 0.30544 | F12: =AVERAGE(D12:D36) -> 0.7584
B13: =B12+1/24 -> 0.04166666667 | C13: 0.21 | D13: =IF(B13<=1,MAX(C13,D12),C13) -> 0.21 | E13: =E12 -> 0.30544 | F13: =F12 -> 0.7584
B14: =B13+1/24 -> 0.08333333333 | C14: 0.29 | D14: =IF(B14<=1,MAX(C14,D13),C14) -> 0.29 | E14: =E13 -> 0.30544 | F14: =F13 -> 0.7584
B15: 0.125 | C15: 0.4 | D15: 0.4 | E15: 0.30544 | F15: 0.7584
B16: 0.1666666667 | C16: 0.62 | D16: 0.62 | E16: 0.30544 | F16: 0.7584
B17: 0.2083333333 | C17: 0.45 | D17: 0.62 | E17: 0.30544 | F17: 0.7584
B18: 0.25 | C18: 0.35 | D18: 0.62 | E18: 0.30544 | F18: 0.7584
B19: 0.2916666667 | C19: 0.38 | D19: 0.62 | E19: 0.30544 | F19: 0.7584
B20: 0.3333333333 | C20: 0.55 | D20: 0.62 | E20: 0.30544 | F20: 0.7584
B21: 0.375 | C21: 0.75 | D21: 0.75 | E21: 0.30544 | F21: 0.7584
B22: 0.4166666667 | C22: 0.94 | D22: 0.94 | E22: 0.30544 | F22: 0.7584
B23: 0.4583333333 | C23: 0.52 | D23: 0.94 | E23: 0.30544 | F23: 0.7584
B24: 0.5 | C24: 0.4 | D24: 0.94 | E24: 0.30544 | F24: 0.7584
B25: 0.5416666667 | C25: 0.35 | D25: 0.94 | E25: 0.30544 | F25: 0.7584
B26: 0.5833333333 | C26: 0.3 | D26: 0.94 | E26: 0.30544 | F26: 0.7584
B27: 0.625 | C27: 0.25 | D27: 0.94 | E27: 0.30544 | F27: 0.7584
B28: 0.6666666667 | C28: 0.22 | D28: 0.94 | E28: 0.30544 | F28: 0.7584
B29: 0.7083333333 | C29: 0.2 | D29: 0.94 | E29: 0.30544 | F29: 0.7584
B30: 0.75 | C30: 0.156 | D30: 0.94 | E30: 0.30544 | F30: 0.7584
B31: 0.7916666667 | C31: 0.1 | D31: 0.94 | E31: 0.30544 | F31: 0.7584
B32: 0.8333333333 | C32: 0.05 | D32: 0.94 | E32: 0.30544 | F32: 0.7584
B33: 0.875 | C33: 0.03 | D33: 0.94 | E33: 0.30544 | F33: 0.7584
B34: 0.9166666667 | C34: 0.01 | D34: 0.94 | E34: 0.30544 | F34: 0.7584
B35: 0.9583333333 | C35: 0 | D35: 0.94 | E35: 0.30544 | F35: 0.7584
B36: 1 | C36: 0 | D36: 0.94 | E36: 0.30544 | F36: 0.7584

Sheet Spreadsheet8.4
B9: Parameters
B10: IR Vol | C10: 0.008
B11: FX Vol | C11: 0.08
B12: Correlation | C12: 0.2
B13: Confidence level | C13: 0.95
C15: IRS | D15: FX Forward | E15: CCS
B16: 0 | C16: =NORMSINV(ConfLevel)*SQRT(B16)*(10-B16)*IRVol -> 0 | D16: =NORMSINV(ConfLevel)*FXVol*SQRT(B16) -> 0 | E16: =NORMSINV(ConfLevel)*SQRT(B16*(10-B16)^2*IRVol^2+B16*FXVol^2+2*IRFXCorr*B16*SQRT(10-B16)*IRVol*FXVol) -> 0
B17: 0.025 | C17: 0.02075392068 | D17: 0.02080593552 | E17: =NORMSINV(ConfLevel)*SQRT(B17*(10-B17)^2*IRVol^2+B17*FXVol^2+2*IRFXCorr*B17*(10-B17)*IRVol*FXVol) -> 0.03219214299
B18: 0.05 | C18: 0.029276916 | D18: 0.02942403618 | E18: =NORMSINV(ConfLevel)*SQRT(B18*(10-B18)^2*IRVol^2+B18*FXVol^2+2*IRFXCorr*B18*(10-B18)*IRVol*FXVol) -> 0.04546965725
B19: 0.1 | C19: 0.04119575232 | D19: 0.04161187103 | E19: =NORMSINV(ConfLevel)*SQRT(B19*(10-B19)^2*IRVol^2+B19*FXVol^2+2*IRFXCorr*B19*(10-B19)*IRVol*FXVol) -> 0.06414304914
B20: 0.2 | C20: 0.05767111092 | D20: 0.05884807237 | E20: =NORMSINV(ConfLevel)*SQRT(B20*(10-B20)^2*IRVol^2+B20*FXVol^2+2*IRFXCorr*B20*(10-B20)*IRVol*FXVol) -> 0.09025844082
B21: 0.3 | C21: 0.06991165858 | D21: 0.07207387482 | E21: =NORMSINV(ConfLevel)*SQRT(B21*(10-B21)^2*IRVol^2+B21*FXVol^2+2*IRFXCorr*B21*(10-B21)*IRVol*FXVol) -> 0.1099900227
B22: 0.4 | C22: 0.07989479238 | D22: 0.08322374206 | E22: =NORMSINV(ConfLevel)*SQRT(B22*(10-B22)^2*IRVol^2+B22*FXVol^2+2*IRFXCorr*B22*(10-B22)*IRVol*FXVol) -> 0.1263686137
B23: =B22+0.2 -> 0.6 | C23: 0.09581218019 | D23: 0.1019278513 | E23: =NORMSINV(ConfLevel)*SQRT(B23*(10-B23)^2*IRVol^2+B23*FXVol^2+2*IRFXCorr*B23*(10-B23)*IRVol*FXVol) -> 0.1532175988
B24: 0.8 | C24: 0.1082804532 | D24: 0.1176961447 | E24: =NORMSINV(ConfLevel)*SQRT(B24*(10-B24)^2*IRVol^2+B24*FXVol^2+2*IRFXCorr*B24*(10-B24)*IRVol*FXVol) -> 0.1751419875
B25: 1 | C25: 0.1184294611 | D25: 0.1315882902 | E25: =NORMSINV(ConfLevel)*SQRT(B25*(10-B25)^2*IRVol^2+B25*FXVol^2+2*IRFXCorr*B25*(10-B25)*IRVol*FXVol) -> 0.1938416557
B26: 1.2 | C26: 0.1268500197 | D26: 0.1441477496 | E26: =NORMSINV(ConfLevel)*SQRT(B26*(10-B26)^2*IRVol^2+B26*FXVol^2+2*IRFXCorr*B26*(10-B26)*IRVol*FXVol) -> 0.2101988563
B27: 1.4 | C27: 0.1338997336 | D27: 0.1556973646 | E27: =NORMSINV(ConfLevel)*SQRT(B27*(10-B27)^2*IRVol^2+B27*FXVol^2+2*IRFXCorr*B27*(10-B27)*IRVol*FXVol) -> 0.2247441707
B28: 1.6 | C28: 0.1398158867 | D28: 0.1664474841 | E28: =NORMSINV(ConfLevel)*SQRT(B28*(10-B28)^2*IRVol^2+B28*FXVol^2+2*IRFXCorr*B28*(10-B28)*IRVol*FXVol) -> 0.23782777
B29: 1.8 | C29: 0.144766258 | D29: 0.1765442171 | E29: =NORMSINV(ConfLevel)*SQRT(B29*(10-B29)^2*IRVol^2+B29*FXVol^2+2*IRFXCorr*B29*(10-B29)*IRVol*FXVol) -> 0.2496961921
B30: 2 | C30: 0.1488751557 | D30: 0.1860939446 | E30: =NORMSINV(ConfLevel)*SQRT(B30*(10-B30)^2*IRVol^2+B30*FXVol^2+2*IRFXCorr*B30*(10-B30)*IRVol*FXVol) -> 0.2605315224
B31: 2.2 | C31: 0.152238041 | D31: 0.1951769757 | E31: =NORMSINV(ConfLevel)*SQRT(B31*(10-B31)^2*IRVol^2+B31*FXVol^2+2*IRFXCorr*B31*(10-B31)*IRVol*FXVol) -> 0.2704733206
B32: 2.4 | C32: 0.1549303339 | D32: 0.2038557025 | E32: =NORMSINV(ConfLevel)*SQRT(B32*(10-B32)^2*IRVol^2+B32*FXVol^2+2*IRFXCorr*B32*(10-B32)*IRVol*FXVol) -> 0.2796317733
B33: 2.6 | C33: 0.1570130094 | D33: 0.2121797424 | E33: =NORMSINV(ConfLevel)*SQRT(B33*(10-B33)^2*IRVol^2+B33*FXVol^2+2*IRFXCorr*B33*(10-B33)*IRVol*FXVol) -> 0.2880960259
B34: 2.8 | C34: 0.1585363138 | D34: 0.2201893247 | E34: =NORMSINV(ConfLevel)*SQRT(B34*(10-B34)^2*IRVol^2+B34*FXVol^2+2*IRFXCorr*B34*(10-B34)*IRVol*FXVol) -> 0.2959396949
B35: 3 | C35: 0.159542323 | D35: 0.2279176042 | E35: =NORMSINV(ConfLevel)*SQRT(B35*(10-B35)^2*IRVol^2+B35*FXVol^2+2*IRFXCorr*B35*(10-B35)*IRVol*FXVol) -> 0.3032246506
B36: 3.2 | C36: 0.1600667568 | D36: 0.2353922895 | E36: =NORMSINV(ConfLevel)*SQRT(B36*(10-B36)^2*IRVol^2+B36*FXVol^2+2*IRFXCorr*B36*(10-B36)*IRVol*FXVol) -> 0.3100036915
B37: 3.4 | C37: 0.1601403 | D37: 0.2426368182 | E37: =NORMSINV(ConfLevel)*SQRT(B37*(10-B37)^2*IRVol^2+B37*FXVol^2+2*IRFXCorr*B37*(10-B37)*IRVol*FXVol) -> 0.3163224848
B38: 3.6 | C38: 0.1597895848 | D38: 0.2496712262 | E38: =NORMSINV(ConfLevel)*SQRT(B38*(10-B38)^2*IRVol^2+B38*FXVol^2+2*IRFXCorr*B38*(10-B38)*IRVol*FXVol) -> 0.3222210068
B39: 3.8 | C39: 0.1590379363 | D39: 0.2565128005 | E39: =NORMSINV(ConfLevel)*SQRT(B39*(10-B39)^2*IRVol^2+B39*FXVol^2+2*IRFXCorr*B39*(10-B39)*IRVol*FXVol) -> 0.3277346313
B40: =B39+0.2 -> 4 | C40: 0.1579059482 | D40: 0.2631765803 | E40: =NORMSINV(ConfLevel)*SQRT(B40*(10-B40)^2*IRVol^2+B40*FXVol^2+2*IRFXCorr*B40*(10-B40)*IRVol*FXVol) -> 0.3328949682
B41: 4.2 | C41: 0.1564119328 | D41: 0.2696757461 | E41: =NORMSINV(ConfLevel)*SQRT(B41*(10-B41)^2*IRVol^2+B41*FXVol^2+2*IRFXCorr*B41*(10-B41)*IRVol*FXVol) -> 0.3377305177
B42: 4.4 | C42: 0.1545722786 | D42: 0.2760219261 | E42: =NORMSINV(ConfLevel)*SQRT(B42*(10-B42)^2*IRVol^2+B42*FXVol^2+2*IRFXCorr*B42*(10-B42)*IRVol*FXVol) -> 0.3422671883
B43: 4.6 | C43: 0.1524017379 | D43: 0.2822254405 | E43: =NORMSINV(ConfLevel)*SQRT(B43*(10-B43)^2*IRVol^2+B43*FXVol^2+2*IRFXCorr*B43*(10-B43)*IRVol*FXVol) -> 0.3465287117
B44: 4.8 | C44: 0.1499136596 | D44: 0.2882954993 | E44: =NORMSINV(ConfLevel)*SQRT(B44*(10-B44)^2*IRVol^2+B44*FXVol^2+2*IRFXCorr*B44*(10-B44)*IRVol*FXVol) -> 0.3505369789
B45: 5 | C45: 0.1471201809 | D45: 0.2942403618 | E45: =NORMSINV(ConfLevel)*SQRT(B45*(10-B45)^2*IRVol^2+B45*FXVol^2+2*IRFXCorr*B45*(10-B45)*IRVol*FXVol) -> 0.3543123146
B46: 5.2 | C46: 0.1440323853 | D46: 0.3000674693 | E46: =NORMSINV(ConfLevel)*SQRT(B46*(10-B46)^2*IRVol^2+B46*FXVol^2+2*IRFXCorr*B46*(10-B46)*IRVol*FXVol) -> 0.3578737033
B47: 5.4 | C47: 0.1406604347 | D47: 0.3057835538 | E47: =NORMSINV(ConfLevel)*SQRT(B47*(10-B47)^2*IRVol^2+B47*FXVol^2+2*IRFXCorr*B47*(10-B47)*IRVol*FXVol) -> 0.3612389773
B48: 5.6 | C48: =NORMSINV(ConfLevel)*SQRT(B48)*(10-B48)*IRVol -> 0.1370136809 | D48: =NORMSINV(ConfLevel)*FXVol*SQRT(B48) -> 0.3113947292 | E48: =NORMSINV(ConfLevel)*SQRT(B48*(10-B48)^2*IRVol^2+B48*FXVol^2+2*IRFXCorr*B48*(10-B48)*IRVol*FXVol) -> 0.3644249736
B49: 5.8 | C49: 0.1331007587 | D49: 0.3169065683 | E49: =NORMSINV(ConfLevel)*SQRT(B49*(10-B49)^2*IRVol^2+B49*FXVol^2+2*IRFXCorr*B49*(10-B49)*IRVol*FXVol) -> 0.3674476654
B50: 6 | C50: 0.1289296668 | D50: 0.322324167 | E50: =NORMSINV(ConfLevel)*SQRT(B50*(10-B50)^2*IRVol^2+B50*FXVol^2+2*IRFXCorr*B50*(10-B50)*IRVol*FXVol) -> 0.370322274
B51: 6.2 | C51: 0.1245078361 | D51: 0.3276522001 | E51: =NORMSINV(ConfLevel)*SQRT(B51*(10-B51)^2*IRVol^2+B51*FXVol^2+2*IRFXCorr*B51*(10-B51)*IRVol*FXVol) -> 0.373063362
B52: 6.4 | C52: 0.1198421886 | D52: 0.3328949682 | E52: =NORMSINV(ConfLevel)*SQRT(B52*(10-B52)^2*IRVol^2+B52*FXVol^2+2*IRFXCorr*B52*(10-B52)*IRVol*FXVol) -> 0.3756849141
B53: 6.6 | C53: 0.114939189 | D53: 0.3380564383 | E53: =NORMSINV(ConfLevel)*SQRT(B53*(10-B53)^2*IRVol^2+B53*FXVol^2+2*IRFXCorr*B53*(10-B53)*IRVol*FXVol) -> 0.3782004043
B54: 6.8 | C54: 0.1098048893 | D54: 0.3431402791 | E54: =NORMSINV(ConfLevel)*SQRT(B54*(10-B54)^2*IRVol^2+B54*FXVol^2+2*IRFXCorr*B54*(10-B54)*IRVol*FXVol) -> 0.380622854
B55: 7 | C55: 0.1044449674 | D55: 0.3481498912 | E55: =NORMSINV(ConfLevel)*SQRT(B55*(10-B55)^2*IRVol^2+B55*FXVol^2+2*IRFXCorr*B55*(10-B55)*IRVol*FXVol) -> 0.3829648803
B56: 7.2 | C56: 0.09886476158 | D56: 0.3530884342 | E56: =NORMSINV(ConfLevel)*SQRT(B56*(10-B56)^2*IRVol^2+B56*FXVol^2+2*IRFXCorr*B56*(10-B56)*IRVol*FXVol) -> 0.3852387377
B57: 7.4 | C57: 0.09306930089 | D57: 0.3579588496 | E57: =NORMSINV(ConfLevel)*SQRT(B57*(10-B57)^2*IRVol^2+B57*FXVol^2+2*IRFXCorr*B57*(10-B57)*IRVol*FXVol) -> 0.387456352
B58: 7.6 | C58: 0.08706333152 | D58: 0.3627638813 | E58: =NORMSINV(ConfLevel)*SQRT(B58*(10-B58)^2*IRVol^2+B58*FXVol^2+2*IRFXCorr*B58*(10-B58)*IRVol*FXVol) -> 0.3896293497
B59: 7.8 | C59: 0.08085134071 | D59: 0.3675060941 | E59: =NORMSINV(ConfLevel)*SQRT(B59*(10-B59)^2*IRVol^2+B59*FXVol^2+2*IRFXCorr*B59*(10-B59)*IRVol*FXVol) -> 0.3917690808
B60: 8 | C60: 0.07443757784 | D60: 0.3721878892 | E60: =NORMSINV(ConfLevel)*SQRT(B60*(10-B60)^2*IRVol^2+B60*FXVol^2+2*IRFXCorr*B60*(10-B60)*IRVol*FXVol) -> 0.3938866383
B61: 8.2 | C61: 0.06782607333 | D61: 0.3768115185 | E61: =NORMSINV(ConfLevel)*SQRT(B61*(10-B61)^2*IRVol^2+B61*FXVol^2+2*IRFXCorr*B61*(10-B61)*IRVol*FXVol) -> 0.3959928724
B62: 8.4 | C62: 0.06102065562 | D62: 0.3813790976 | E62: =NORMSINV(ConfLevel)*SQRT(B62*(10-B62)^2*IRVol^2+B62*FXVol^2+2*IRFXCorr*B62*(10-B62)*IRVol*FXVol) -> 0.3980984018
B63: 8.6 | C63: 0.05402496635 | D63: 0.3858926168 | E63: =NORMSINV(ConfLevel)*SQRT(B63*(10-B63)^2*IRVol^2+B63*FXVol^2+2*IRFXCorr*B63*(10-B63)*IRVol*FXVol) -> 0.4002136217
B64: 8.8 | C64: 0.04684247416 | D64: 0.3903539514 | E64: =NORMSINV(ConfLevel)*SQRT(B64*(10-B64)^2*IRVol^2+B64*FXVol^2+2*IRFXCorr*B64*(10-B64)*IRVol*FXVol) -> 0.4023487078
B65: 9 | C65: 0.03947648705 | D65: 0.3947648705 | E65: =NORMSINV(ConfLevel)*SQRT(B65*(10-B65)^2*IRVol^2+B65*FXVol^2+2*IRFXCorr*B65*(10-B65)*IRVol*FXVol) -> 0.4045136192
B66: 9.2 | C66: 0.03193016365 | D66: 0.3991270457 | E66: =NORMSINV(ConfLevel)*SQRT(B66*(10-B66)^2*IRVol^2+B66*FXVol^2+2*IRFXCorr*B66*(10-B66)*IRVol*FXVol) -> 0.4067180973
B67: 9.4 | C67: 0.02420652348 | D67: 0.403442058 | E67: =NORMSINV(ConfLevel)*SQRT(B67*(10-B67)^2*IRVol^2+B67*FXVol^2+2*IRFXCorr*B67*(10-B67)*IRVol*FXVol) -> 0.4089716639
B68: 9.6 | C68: 0.0163084562 | D68: 0.4077114051 | E68: =NORMSINV(ConfLevel)*SQRT(B68*(10-B68)^2*IRVol^2+B68*FXVol^2+2*IRFXCorr*B68*(10-B68)*IRVol*FXVol) -> 0.4112836163
B69: 9.8 | C69: 0.008238730131 | D69: 0.4119365066 | E69: =NORMSINV(ConfLevel)*SQRT(B69*(10-B69)^2*IRVol^2+B69*FXVol^2+2*IRFXCorr*B69*(10-B69)*IRVol*FXVol) -> 0.4136630218
B70: 10 | C70: 1.478350634e-16 | D70: 0.4161187103 | E70: =NORMSINV(ConfLevel)*SQRT(B70*(10-B70)^2*IRVol^2+B70*FXVol^2+2*IRFXCorr*B70*(10-B70)*IRVol*FXVol) -> 0.4161187103

Sheet Spreadsheet8.5
B9: Parameters
B10: Initial spread | C10: 600
B11: Recovery rate | C11: 0.4
B12: Interest rate | C12: 0.05
B13: Spread volatility | C13: 0.75
B14: Confidence level | C14: 0.98
C17: =C10/(1-C11)/10000 -> 0.1
C18: Def Prob | D18: Duration | E18: dSpread | F18: PFE | G18: ES
B19: 0
B20: 0.25 | C20: =EXP(-B19*HazardRate)-EXP(-B20*HazardRate) -> 0.02469008797 | D20: =(1-EXP(-(HazardRate+IRate)*(5-B20)))/(HazardRate+IRate) -> 3.397222519 | E20: =NORMSINV(ConfLevel1)*CDSSpread*SpreadVol*SQRT(B20) -> 462.0935049 | F20: =IF(C20>(1-ConfLevel1),(1-Rec),E20*D20/10000) -> 0.6 | G20: =(MIN(1-ConfLevel1,C20)*(1-Rec)+MAX((1-ConfLevel1)-C20,0)*E20*D20/10000)/(1-ConfLevel1) -> 0.6
B21: =B20+0.25 -> 0.5 | C21: 0.02408048753 | D21: 3.272290529 | E21: 653.4989017 | F21: 0.6 | G21: 0.6
B22: 0.75 | C22: 0.02348593817 | D22: 3.142584638 | E22: 800.3694283 | F22: 0.6 | G22: 0.6
B23: 1 | C23: 0.02290606829 | D23: 3.007922426 | E23: 924.1870098 | F23: 0.6 | G23: 0.6
B24: 1.25 | C24: 0.02234051545 | D24: 2.868114502 | E24: 1033.272489 | F24: 0.6 | G24: 0.6
B25: 1.5 | C25: 0.02178892616 | D25: 2.722964238 | E25: 1131.8933 | F25: 0.6 | G25: 0.6
B26: 1.75 | C26: 0.02125095566 | D26: 2.572267492 | E26: 1222.584496 | F26: 0.6 | G26: 0.6
B27: 2 | C27: 0.02072626769 | D27: 2.415812323 | E27: 1306.997803 | F27: 0.6 | G27: 0.6
B28: 2.25 | C28: 0.02021453432 | D28: 2.253378689 | E28: 1386.280515 | F28: 0.6 | G28: 0.6
B29: 2.5 | C29: 0.01971543569 | D29: 2.084738141 | E29: 1461.267967 | F29: 0.3046361066 | G29: 0.5957974988
B30: 2.75 | C30: 0.01922865985 | D30: 1.909653502 | E30: 1532.590774 | F30: 0.2926717338 | G30: 0.5881472684
B31: 3 | C31: 0.01875390254 | D31: 1.727878529 | E31: 1600.738857 | F31: 0.2765882301 | G31: 0.5798498708
B32: 3.25 | C32: 0.01829086704 | D32: 1.539157571 | E32: 1666.101826 | F32: 0.2564393239 | G32: 0.5706404562
B33: 3.5 | C33: 0.01783926392 | D33: 1.343225208 | E33: 1728.995576 | F33: 0.2322430443 | G33: 0.5602687139
B34: 3.75 | C34: 0.01739881093 | D34: 1.139805879 | E34: 1789.680449 | F34: 0.2039888297 | G34: 0.5484950036
B35: 4 | C35: 0.01696923276 | D35: 0.9286134905 | E35: 1848.37402 | F35: 0.171642505 | G35: 0.5350874068
B36: 4.25 | C36: 0.01655026091 | D36: 0.7093510193 | E36: 1905.26033 | F36: 0.1351498357 | G36: 0.5198194108
B37: 4.5 | C37: 0.01614163351 | D37: 0.4817100911 | E37: 1960.496705 | F37: 0.09443910465 | G37: 0.5024680391
B38: 4.75 | C38: 0.01574309516 | D38: 0.2453705485 | E38: 2014.21889 | F38: 0.0494229994 | G38: 0.482812305
B39: 5 | C39: 0.01535439675 | D39: 0 | E39: 2066.544978 | F39: 0 | G39: 0.4606319026

Sheet Spreadsheet8.6
D10: Party A | E10: Party B
C11: Portfolio MtM | D11: 1700000 | E11: =-MtM_A -> -1700000
C12: Initial Margin | D12: 0 | E12: 0
C13: Threshold | D13: 1000000 | E13: 1000000
C14: Collateral held | D14: 0 | E14: =-CollateralHeld_A -> 0
C15: Minimum transfer amount | D15: 100000 | E15: 100000
C16: Rounding | D16: 50000 | E16: -50000
C17: Collateral call / return | D17: =CalcCollateral(MtM_A,IA_A,IA_B,Threshold_A,Threshold_B,CollateralHeld_A,MTA_A,MTA_B,Rounding_A) -> 700000 | E17: =CalcCollateral(MtM_B,IA_B,IA_A,Threshold_B,Threshold_A,E14,MTA_B,MTA_A,Rounding_B) -> -700000
C21: The calculation is made from both party A and party B's point of view
C22: If the parties agree on the MtM and collateral parameters they will agree on the collateral required
C23: When Party A calls for collateral, it is with respect to Party B's Threshold, MTA etc
